Workbook

Sheet 目录
A1: 附表3
A2: 政府预算草案报表目录
A3: 表号 | B3: 表名
A4: 1 | B4: 2023年江阴临港开发区一般公共预算收入预算表 | C4: 一般公共预算
A5: 2 | B5: 2023年江阴临港开发区一般公共预算支出预算表
A6: 3 | B6: 2023年江阴临港开发区一般公共预算平衡情况表
A7: 4 | B7: 2023年江阴临港开发区一般公共预算支出表（按经济科目分类）
A8: 5 | B8: 2023年江阴临港开发区一般公共预算本级支出预算表
A9: 6 | B9: 2023年江阴临港开发区一般公共预算基本支出预算表
A10: 7 | B10: 2023年江阴临港开发区一般公共预算对下级的转移支付预算分项目表
A11: 8 | B11: 2023年江阴临港开发区一般公共预算对下级的转移支付预算分地区表
A12: 9 | B12: 2023年江阴临港开发区财政专项资金清单及预算安排情况表
A13: 10 | B13: 2023年江阴临港开发区一般公共预算“三公”经费等预算表
A14: 11 | B14: 2023年江阴临港开发区政府性基金收入预算表 | C14: 政府性基金预算
A15: 12 | B15: 2023年江阴临港开发区政府性基金支出预算表
A16: 13 | B16: 2023年江阴临港开发区政府性基金预算支出表（按经济科目分类）
A17: 14 | B17: 2023年江阴临港开发区政府性基金本级支出预算表
A18: 15 | B18: 2023年江阴临港开发区政府性基金预算对下级的转移支付预算分项目表
A19: 16 | B19: 2023年江阴临港开发区政府性基金预算对下级的转移支付预算分地区表
A20: 17 | B20: 2023年江阴临港开发区国有资本经营收入预算表 | C20: 国有资本经营预算
A21: 18 | B21: 2023年江阴临港开发区国有资本经营支出预算表
A22: 19 | B22: 2023年江阴临港开发区国有资本经营预算转移支付预算表
A23: 20 | B23: 2023年江阴临港开发区国有资本经营预算支出表（按经济科目分类）
A24: 21 | B24: 2023年江阴临港开发区社会保险基金预算收入表 | C24: 社保基金预算
A25: 22 | B25: 2023年江阴临港开发区社会保险基金预算支出表
A26: 23 | B26: 2023年江阴临港开发区地方政府债务限额及余额情况表 | C26: 第五部分：地方政府债务
A27: 24 | B27: 2023年江阴临港开发区地方政府一般债务余额情况表
A28: 25 | B28: 2023年江阴临港开发区地方政府专项债务余额情况表
A29: 26 | B29: 2023年江阴临港开发区地方政府债券发行及还本付息情况表
A30: 27 | B30: 2023年江阴临港开发区地方政府债务限额提前下达情况表
A31: 28 | B31: 2023年江阴临港开发区地方年初新增地方政府债券资金安排表
A33: 注：*为财政部一体化规范规定表样；#为财政部关于地方政府债务信息公开参考表样

Sheet 政府预算草案表-1
A1: 附表1
A2: 2023年江阴临港开发区一般公共预算收入预算表
D3: 单位：万元
A4: 项 目 | B4: 上年执行数 | C4: 本年预算数 | D4: 预算数为上年执行数的％
A6: 一、税收收入 | B6: =SUM(B7:B15) -> 384511 | C6: =SUM(C7:C15) -> 450303 | D6: =C6/B6 -> 117%
A7: 增值税 | B7: 164636 | C7: 192624 | D7: 117%
A8: 企业所得税 | B8: 94766 | C8: 110497 | D8: 117%
A9: 个人所得税 | B9: 16879 | C9: 19968 | D9: 118%
A10: 城市维护建设税 | B10: 27418 | C10: 32024 | D10: 117%
A11: 房产税 | B11: 22502 | C11: 26440 | D11: 118%
A12: 土地增值税 | B12: 7571 | C12: 8964
A13: 契税 | B13: 8777 | C13: 10357 | D13: =C13/B13 -> 118%
A14: 城镇土地使用税 | B14: 21645 | C14: 25455 | D14: 118%
A15: 其他各项税收 | B15: 20317 | C15: 23974 | D15: 118%
A16: 二、非税收入 | B16: =SUM(B17:B22) -> 19280 | C16: =SUM(C17:C22) -> 22132 | D16: 115%
A17: 专项收入 | B17: 19280 | C17: 22132 | D17: 115%
A18: 行政事业性收费收入
A19: 国有资本经营收入
A20: 罚没收入
A21: 国有资源（资产）有偿使用收入
A22: 其他收入
A23: 本级收入合计 | B23: =B6+B16 -> 403791 | C23: =C6+C16 -> 472435 | D23: =C23/B23 -> 117%
A24: 地方政府一般债务收入
A25: 转移性收入 | B25: =B26+B27+B28+B29+B30+B31+B35+B36+B37+B38 -> 37500 | C25: =C26+C27+C28+C29+C30+C31+C35+C36+C37+C38 -> 30000 | D25: 80%
A26: 一般性转移支付收入 | B26: 37500 | C26: 30000 | D26: 80%
A27: 专项转移支付收入
A28: 省补助计划单列市收入
A29: 下级上解收入
A30: 接受其他地区援助收入
A31: 调入资金
A32: 从政府性基金预算调入一般公共预算
A33: 从国有资本经营预算调入一般公共预算
A34: 从其他资金调入一般公共预算
A35: 动用预算稳定调节基金
A36: 地方政府一般债务转贷收入
A37: 上年结转收入
A38: 上年结余收入
A39: 收 入 总 计 | B39: =B23+B24+B25 -> 441291 | C39: =C23+C24+C25 -> 502435 | D39: 114%

Sheet 政府预算草案表-2
A1: 附表2
A2: 2023年江阴临港开发区一般公共预算支出预算表
D3: 单位：万元
A4: 项 目 | B4: 上年执行数 | C4: 本年预算数 | D4: 预算数为上年执行数的％
A5: 一、一般公共服务支出
A6: 一、一般公共服务支出 | B6: 25311 | C6: =43273.62-15000 -> 28274 | D6: =C6/B6 -> 112%
A7: 二、公共安全支出 | B7: 10075 | C7: 11048 | D7: =C7/B7 -> 110%
A8: 三、教育支出 | B8: 63751 | C8: =65786.09-577 -> 65209 | D8: 102%
A9: 四、科学技术支出 | B9: 1387 | C9: =1363.9+3100 -> 4464 | D9: 322%
A10: 五、文化旅游体育与传媒支出 | B10: 96 | C10: 353 | D10: 368%
A11: 六、社会保障和就业支出 | B11: 51042 | C11: =43831.56+1061 -> 44893 | D11: 88%
A12: 七、卫生健康支出 | B12: 16568 | C12: =21602.3-3763 -> 17839 | D12: 108%
A13: 八、节能环保支出 | B13: 6968 | C13: =2450.2+1160+3000 -> 6610 | D13: 95%
A14: 九、城乡社区支出 | B14: 3036 | C14: =3016.45 -> 3016 | D14: 99%
A15: 十、农林水支出 | B15: 17793 | C15: =10217.5+10000 -> 20218 | D15: 114%
A16: 十一、交通运输支出 | B16: 1138 | C16: =1600+42 -> 1642 | D16: 144%
A17: 十二、资源勘探工业信息等支出 | B17: 18986 | C17: =18578+1633 -> 20211 | D17: 106%
A18: 十三、商业服务业等支出
A19: 十四、自然资源海洋气象等支出
A20: 十五、住房保障支出 | B20: 13012 | C20: 13000 | D20: 100%
A21: 十六、粮油物资储备支出
A22: 十七、灾害防治及应急管理支出 | B22: 1239 | C22: =1570+291+215 -> 2076 | D22: 168%
A23: 十八、其他各项支出
A24: 十九、债务付息支出 | B24: 577 | C24: 577 | D24: 100%
A25: 二十、债务发行费支出 | C25: =E25+F25+G25+H25+I25 -> 0
A26: 本级支出合计 | B26: =SUM(B6:B25) -> 230979 | C26: =SUM(C6:C25) -> 239430 | D26: 104%
A27: 预备费
A28: 地方政府一般债务还本支出
A29: 转移性支出 | B29: =SUM(B30:B40) -> 0 | C29: =SUM(C30:C40) -> 0
A30: 一般性转移支付
A31: 专项转移支付
A32: 计划单列市上解省支出
A33: 上解上级支出
A34: 援助其他地区支出
A35: 调出资金
A36: 安排预算稳定调节基金
A37: 补充预算周转金
A38: 地方政府一般债务转贷支出
A39: 年终结转
A40: 年终结余
A41: 支出总计 | B41: =B26+B27+B28+B29 -> 230979 | C41: =C26+C27+C28+C29 -> 239430 | D41: 104%

Sheet 政府预算草案-3
A1: 附表3
A2: 2023年江阴临港开发区一般公共预算平衡情况表
C3: 单位：万元
A4: 收 入 项 目 | B4: 本年预算数 | C4: 支 出 项 目 | D4: 本年预算数
A5: 1.一般公共预算收入 | B5: ='政府预算草案表-1'!C23 -> 472435 | C5: 1.一般公共预算支出 | D5: ='政府预算草案表-2'!C26 -> 239430
A6: 2.地方政府一般债务收入 | C6: 2.预备费
A7: 3.上级补助收入 | B7: =B8+B9 -> 30000 | C7: 3.地方政府一般债务还本支出 | D7: ='政府预算草案表-2'!C28 -> 0
A8: 一般性转移支付收入 | B8: ='政府预算草案表-1'!C26 -> 30000 | C8: 4.补助下级支出 | D8: =D9+D10 -> 263005
A9: 专项转移支付收入 | B9: ='政府预算草案表-1'!C27 -> 0 | C9: 一般性转移支付支出 | D9: 263005
A10: 4.下级上解收入 | B10: ='政府预算草案表-1'!C29 -> 0 | C10: 专项转移支付支出 | D10: ='政府预算草案表-2'!C31 -> 0
A11: 5.接受其他地区援助收入 | C11: 5.上解上级支出 | D11: ='政府预算草案表-2'!C33 -> 0
A12: 6.调入资金 | B12: ='政府预算草案表-1'!C31 -> 0 | C12: 6.接受其他地区援助收入
A13: 7.动用预算稳定调节基金 | B13: ='政府预算草案表-1'!C35 -> 0 | C13: 7.调出资金
A14: 8.地方政府一般债务转贷收入 | B14: ='政府预算草案表-1'!C36 -> 0 | C14: 8.安排预算稳定调节基金
A15: 9.上年结转收入 | B15: ='政府预算草案表-1'!C37 -> 0 | C15: 9.补充预算周转金
A16: 10.上年结余收入 | C16: 10.地方政府一般债券转贷支出
C17: 11.年终结转 | D17: ='政府预算草案表-2'!C39 -> 0
C18: 12.年终结余
A19: 收入总计 | B19: =B5+B7+B10+B12+B14+B15+B13 -> 502435 | C19: 支出总计 | D19: =D5+D6+D7+D8+D11+D12+D13+D14+D15+D16+D17+D18 -> 502435

Sheet 政府预算草案表-4
A1: 附表4
A2: 2023年江阴临港开发区一般公共预算支出表 （按经济科目分类）
A3: 单位：万元
A4: 支出科目 | B4: 上年执行数 | C4: 本年预算数
A5: 支出合计 | B5: =B6+B11+B22+B30+B37+B41+B44+B48+B51+B57+B61+B66+B69+B72 -> 230979 | C5: =C6+C11+C22+C30+C37+C41+C44+C48+C51+C57+C61+C66+C69+C72 -> 239430
A6: 一、机关工资福利支出 | B6: =SUM(B7:B10) -> 40837 | C6: =SUM(C7:C10) -> 44936
A7: 工资奖金津补贴 | B7: 17886 | C7: 19682
A8: 社会保障缴费 | B8: 2770 | C8: 3408
A9: 住房公积金 | B9: 4445 | C9: 4891
A10: 其他工资福利支出 | B10: 15736 | C10: 16956
A11: 二、机关商品和服务支出 | B11: =SUM(B12:B21) -> 43321 | C11: =SUM(C12:C21) -> 63434
A12: 办公经费 | B12: 5801 | C12: 5440
A13: 会议费 | B13: 22 | C13: 14
A14: 培训费 | B14: 390 | C14: 394
A15: 专用材料购置费
A16: 委托业务费 | C16: 134
A17: 公务接待费 | B17: 225 | C17: 165
A18: 因公出国(境)费用 | C18: 60
A19: 公务用车运行维护费 | B19: 328 | C19: 321
A20: 维修(护)费 | C20: 15
A21: 其他商品和服务支出 | B21: 36555 | C21: 56891
A22: 三、机关资本性支出(一) | B22: =SUM(B23:B29) -> 6476 | C22: =SUM(C23:C29) -> 2687
A23: 房屋建筑物购建
A24: 基础设施建设
A25: 公务用车购置
A26: 土地征迁补偿和安置支出
A27: 设备购置 | B27: 108 | C27: 153
A28: 大型修缮
A29: 其他资本性支出 | B29: 6368 | C29: =330+241.66+1962 -> 2534
A30: 四、机关资本性支出(二) | B30: =SUM(B31:B36) -> 0 | C30: =SUM(C31:C36) -> 0
A31: 房屋建筑物购建
A32: 基础设施建设
A33: 公务用车购置
A34: 设备购置
A35: 大型修缮
A36: 其他资本性支出
A37: 五、对事业单位经常性补助 | B37: =SUM(B38:B40) -> 59446 | C37: =SUM(C38:C40) -> 57818
A38: 工资福利支出 | B38: 45531 | C38: 47152
A39: 商品和服务支出 | B39: 13915 | C39: 10666
A40: 其他对事业单位补助
A41: 六、对事业单位资本性补助 | B41: =SUM(B42:B43) -> 0 | C41: =SUM(C42:C43) -> 0
A42: 资本性支出(一)
A43: 资本性支出(二)
A44: 七、对企业补助 | B44: =SUM(B45:B47) -> 19434 | C44: =SUM(C45:C47) -> 12114
A45: 费用补贴
A46: 利息补贴
A47: 其他对企业补助 | B47: 19434 | C47: 12114
A48: 八、对企业资本性支出 | B48: =SUM(B49:B50) -> 0 | C48: =SUM(C49:C50) -> 0
A49: 对企业资本性支出(一)
A50: 对企业资本性支出(二)
A51: 九、对个人和家庭的补助 | B51: =SUM(B52:B56) -> 60887 | C51: =SUM(C52:C56) -> 57864
A52: 社会福利和救助 | B52: 17920 | C52: 17030
A53: 助学金 | B53: 98 | C53: 94
A54: 个人农业生产补贴 | C54: 70
A55: 离退休费 | B55: 5501 | C55: 5158
A56: 其他对个人和家庭补助 | B56: 37368 | C56: 35512
A57: 十、对社会保障基金补助 | B57: =SUM(B58:B60) -> 0 | C57: =SUM(C58:C60) -> 0
A58: 对社会保险基金补助
A59: 补充全国社会保障基金
A60: 对机关事业单位职业年金的补助
A61: 十一、债务利息及费用支出 | B61: =SUM(B62:B65) -> 578 | C61: =SUM(C62:C65) -> 578
A62: 国内债务付息 | B62: 578 | C62: 578
A63: 国外债务付息
A64: 国内债务发行费用
A65: 国外债务发行费用
A66: 十二、债务还本支出 | B66: =SUM(B67:B68) -> 0 | C66: =SUM(C67:C68) -> 0
A67: 国内债务还本
A68: 国外债务还本
A69: 十三、预备费及预留 | B69: =SUM(B70:B71) -> 0 | C69: =SUM(C70:C71) -> 0
A70: 预备费
A71: 预留
A72: 十四、其他支出 | B72: =SUM(B73:B76) -> 0 | C72: =SUM(C73:C76) -> 0
A73: 赠与
A74: 国家赔偿费用支出
A75: 对民间非营利组织和群众性自治组织补贴
A76: 其他支出

Sheet 政府预算草案表-5
A1: 附表5
A2: 2023年江阴临港开发区一般公共预算本级支出预算表
D3: 单位：万元
A4: 项 目 | B4: 上年执行数 | C4: 本年预算数 | D4: 预算数为上年执行数的％
A5: 一、一般公共服务 | B5: =B6+B18+B27+B38+B49+B60+B71+B79+B88+B101+B110+B121+B133+B140+B148+B154+B161+B168+B175+B182+B189+B197+B203+B209+B216+B231 -> 25311 | C5: =C6+C18+C27+C38+C49+C60+C71+C79+C88+C101+C110+C121+C133+C140+C148+C154+C161+C168+C175+C182+C189+C197+C203+C209+C216+C231 -> 28274 | D5: =C5/B5 -> 112%
A6: 人大事务 | B6: =SUM(B7:B17) -> 110 | C6: =SUM(C7:C17) -> 42 | D6: =C6/B6 -> 38%
A7: 行政运行 | B7: 11 | C7: 11 | D7: 98%
A8: 一般行政管理事务
A9: 机关服务
A10: 人大会议
A11: 人大立法
A12: 人大监督
A13: 人大代表履职能力提升
A14: 代表工作
A15: 人大信访工作
A16: 事业运行
A17: 其他人大事务支出 | B17: 99 | C17: 31 | D17: 31%
A18: 政协事务 | B18: =SUM(B19:B26) -> 6 | C18: =SUM(C19:C26) -> 6 | D18: 100%
A19: 行政运行
A20: 一般行政管理事务
A21: 机关服务
A22: 政协会议
A23: 委员视察
A24: 参政议政
A25: 事业运行
A26: 其他政协事务支出 | B26: 6 | C26: 6 | D26: =C26/B26 -> 100%
A27: 政府办公厅(室)及相关机构事务 | B27: =SUM(B28:B37) -> 22830 | C27: =SUM(C28:C37) -> 25817 | D27: =C27/B27 -> 113%
A28: 行政运行 | B28: =31032.95-5000-3203 -> 22830 | C28: 25817 | D28: 113%
A29: 一般行政管理事务
A30: 机关服务
A31: 专项服务
A32: 专项业务及机关事务管理
A33: 政务公开审批
A34: 信访事务
A35: 参事事务
A36: 事业运行
A37: 其他政府办公厅（室）及相关机构事务支出
A38: 发展与改革事务 | B38: =SUM(B39:B48) -> 28 | C38: =SUM(C39:C48) -> 38 | D38: =C38/B38 -> 134%
A39: 行政运行 | B39: 28 | C39: 38 | D39: =C39/B39 -> 134%
A40: 一般行政管理事务
A41: 机关服务
A42: 战略规划与实施
A43: 日常经济运行调节
A44: 社会事业发展规划
A45: 经济体制改革研究
A46: 物价管理
A47: 事业运行
A48: 其他发展与改革事务支出
A49: 统计信息事务 | B49: =SUM(B50:B59) -> 258 | C49: =SUM(C50:C59) -> 132 | D49: =C49/B49 -> 51%
A50: 行政运行 | B50: 258 | C50: 132 | D50: =C50/B50 -> 51%
A51: 一般行政管理事务
A52: 机关服务
A53: 信息事务
A54: 专项统计业务
A55: 统计管理
A56: 专项普查活动
A57: 统计抽样调查
A58: 事业运行
A59: 其他统计信息事务支出
A60: 财政事务 | B60: =SUM(B61:B70) -> 80 | C60: =SUM(C61:C70) -> 82 | D60: =C60/B60 -> 102%
A61: 行政运行 | B61: 80 | C61: 82 | D61: =C61/B61 -> 102%
A62: 一般行政管理事务
A63: 机关服务
A64: 预算改革业务
A65: 财政国库业务
A66: 财政监察
A67: 信息化建设
A68: 财政委托业务支出
A69: 事业运行
A70: 其他财政事务支出
A71: 税收事务 | B71: =SUM(B72:B78) -> 256 | C71: =SUM(C72:C78) -> 258 | D71: =C71/B71 -> 101%
A72: 行政运行 | B72: 256 | C72: 258 | D72: =C72/B72 -> 101%
A73: 一般行政管理事务
A74: 机关服务
A75: 信息化建设
A76: 税收业务
A77: 事业运行
A78: 其他税收事务支出
A79: 审计事务
A80: 行政运行
A81: 一般行政管理事务
A82: 机关服务
A83: 审计业务
A84: 审计管理
A85: 信息化建设
A86: 事业运行
A87: 其他审计事务支出
A88: 海关事务
A89: 行政运行
A90: 一般行政管理事务
A91: 机关服务
A92: 缉私办案
A93: 口岸管理
A94: 信息化建设
A95: 海关关务
A96: 关税征管
A97: 海关监管
A98: 检验检疫
A99: 事业运行
A100: 其他海关事务支出
A101: 纪检监察事务 | B101: =SUM(B102:B109) -> 55 | C101: =SUM(C102:C109) -> 69 | D101: =C101/B101 -> 126%
A102: 行政运行 | B102: 55 | C102: 69 | D102: =C102/B102 -> 126%
A103: 一般行政管理事务
A104: 机关服务
A105: 大案要案查处
A106: 派驻派出机构
A107: 巡视工作
A108: 事业运行
A109: 其他纪检监察事务支出
A110: 商贸事务 | B110: =SUM(B111:B120) -> 792 | C110: =SUM(C111:C120) -> 816 | D110: =C110/B110 -> 103%
A111: 行政运行
A112: 一般行政管理事务
A113: 机关服务
A114: 对外贸易管理
A115: 国际经济合作
A116: 外资管理
A117: 国内贸易管理
A118: 招商引资 | B118: 792 | C118: 816 | D118: =C118/B118 -> 103%
A119: 事业运行
A120: 其他商贸事务支出
A121: 知识产权事务
A122: 行政运行
A123: 一般行政管理事务
A124: 机关服务
A125: 专利审批
A126: 知识产权战略和规划
A127: 国际合作与交流
A128: 知识产权宏观管理
A129: 商标管理
A130: 原产地地理标志管理
A131: 事业运行
A132: 其他知识产权事务支出
A133: 民族事务
A134: 行政运行
A135: 一般行政管理事务
A136: 机关服务
A137: 民族工作专项
A138: 事业运行
A139: 其他民族事务支出
A140: 港澳台事务
A141: 行政运行
A142: 一般行政管理事务
A143: 机关服务
A144: 港澳事务
A145: 台湾事务
A146: 事业运行
A147: 其他港澳台事务支出
A148: 档案事务
A149: 行政运行
A150: 一般行政管理事务
A151: 机关服务
A152: 档案馆
A153: 其他档案事务支出
A154: 民主党派及工商联事务
A155: 行政运行
A156: 一般行政管理事务
A157: 机关服务
A158: 参政议政
A159: 事业运行
A160: 其他民主党派及工商联事务支出
A161: 群众团体事务
A162: 行政运行
A163: 一般行政管理事务
A164: 机关服务
A165: 工会事务
A166: 事业运行
A167: 其他群众团体事务支出
A168: 党委办公厅（室）及相关机构事务
A169: 行政运行
A170: 一般行政管理事务
A171: 机关服务
A172: 专项业务
A173: 事业运行
A174: 其他党委办公厅（室）及相关机构事务支出
A175: 组织事务 | B175: =SUM(B176:B181) -> 329 | C175: =SUM(C176:C181) -> 321 | D175: =C175/B175 -> 97%
A176: 行政运行 | B176: 329 | C176: 321 | D176: =C176/B176 -> 97%
A177: 一般行政管理事务
A178: 机关服务
A179: 公务员事务
A180: 事业运行
A181: 其他组织事务支出
A182: 宣传事务 | B182: =SUM(B183:B188) -> 324 | C182: =SUM(C183:C188) -> 323 | D182: =C182/B182 -> 100%
A183: 行政运行
A184: 一般行政管理事务
A185: 机关服务
A186: 宣传管理
A187: 事业运行
A188: 其他宣传事务支出 | B188: 324 | C188: 323 | D188: =C188/B188 -> 100%
A189: 统战事务 | B189: =SUM(B190:B196) -> 13 | C189: =SUM(C190:C196) -> 13 | D189: =C189/B189 -> 95%
A190: 行政运行
A191: 一般行政管理事务
A192: 机关服务
A193: 宗教事务
A194: 华侨事务
A195: 事业运行
A196: 其他统战事务支出 | B196: 13 | C196: 13 | D196: =C196/B196 -> 95%
A197: 对外联络事务
A198: 行政运行
A199: 一般行政管理事务
A200: 机关服务
... 1066 more rows

Sheet 政府预算草案表-6
A1: 附表6
A2: 2023年江阴临港开发区一般公共预算基本支出预算表
D3: 单位：万元
A4: 项 目 | B4: 上年执行数 | C4: 本年预算数 | D4: 预算数为上年执行数的％
A5: 一、机关工资福利支出 | B5: =SUM(B6:B9) -> 40837 | C5: =SUM(C6:C9) -> 38744 | D5: =C5/B5 -> 95%
A6: 工资奖金津补贴 | B6: 17886 | C6: 19682 | D6: 110%
A7: 社会保障缴费 | B7: 2770 | C7: 3408 | D7: 123%
A8: 住房公积金 | B8: 4445 | C8: 4891 | D8: 110%
A9: 其他工资福利支出 | B9: 15736 | C9: =16955.52-6192.65 -> 10763 | D9: 68%
A10: 二、机关商品和服务支出 | B10: =SUM(B11:B20) -> 8866 | C10: =SUM(C11:C20) -> 9362 | D10: 106%
A11: 办公经费 | B11: 5801 | C11: 5440 | D11: 94%
A12: 会议费 | B12: 22 | C12: 14
A13: 培训费 | B13: 390 | C13: 394
A14: 专用材料购置费
A15: 委托业务费 | C15: 134
A16: 公务接待费 | B16: 225 | C16: 165
A17: 因公出国(境)费用 | C17: 60
A18: 公务用车运行维护费 | B18: 328 | C18: 321 | D18: =C18/B18 -> 98%
A19: 维修(护)费 | C19: 15
A20: 其他商品和服务支出 | B20: 2100 | C20: =2971.35-153 -> 2818 | D20: =C20/B20 -> 134%
A21: 三、机关资本性支出(一) | B21: =SUM(B22:B28) -> 108 | C21: =SUM(C22:C28) -> 153 | D21: =C21/B21 -> 142%
A22: 房屋建筑物购建
A23: 基础设施建设
A24: 公务用车购置
A25: 土地征迁补偿和安置支出
A26: 设备购置 | B26: 108 | C26: 153
A27: 大型修缮
A28: 其他资本性支出
A29: 四、机关资本性支出(二) | C29: =SUM(C30:C35) -> 0
A30: 房屋建筑物购建
A31: 基础设施建设
A32: 公务用车购置
A33: 设备购置
A34: 大型修缮
A35: 其他资本性支出
A36: 五、对事业单位经常性补助 | B36: =SUM(B37:B39) -> 59446 | C36: =SUM(C37:C39) -> 57817 | D36: =C36/B36 -> 97%
A37: 工资福利支出 | B37: 45531 | C37: 47152 | D37: =C37/B37 -> 104%
A38: 商品和服务支出 | B38: 13915 | C38: =10665 -> 10665 | D38: =C38/B38 -> 77%
A39: 其他对事业单位补助
A40: 六、对事业单位资本性补助 | C40: =SUM(C41:C42) -> 0
A41: 资本性支出(一)
A42: 资本性支出(二)
A43: 七、对企业补助 | C43: =SUM(C44:C46) -> 0
A44: 费用补贴
A45: 利息补贴
A46: 其他对企业补助
A47: 八、对企业资本性支出 | C47: =SUM(C48:C49) -> 0
A48: 对企业资本性支出(一)
A49: 对企业资本性支出(二)
A50: 九、对个人和家庭的补助 | B50: =SUM(B51:B55) -> 5501 | C50: =SUM(C51:C55) -> 6630 | D50: =C50/B50 -> 121%
A51: 社会福利和救助
A52: 助学金
A53: 个人农业生产补贴
A54: 离退休费 | B54: 5501 | C54: 5158 | D54: =C54/B54 -> 94%
A55: 其他对个人和家庭补助 | C55: 1472
A56: 十、对社会保障基金补助 | C56: =SUM(C57:C59) -> 0
A57: 对社会保险基金补助
A58: 补充全国社会保障基金
A59: 对机关事业单位职业年金的补助
A60: 十一、债务利息及费用支出 | C60: =SUM(C61:C64) -> 0
A61: 国内债务付息
A62: 国外债务付息
A63: 国内债务发行费用
A64: 国外债务发行费用
A65: 十二、债务还本支出 | C65: =SUM(C66:C67) -> 0
A66: 国内债务还本
A67: 国外债务还本
A68: 十三、预备费及预留 | C68: =SUM(C69:C70) -> 0
A69: 预备费
A70: 预留
A71: 十四、其他支出 | C71: =SUM(C72:C75) -> 0
A72: 赠与
A73: 国家赔偿费用支出
A74: 对民间非营利组织和群众性自治组织补贴
A75: 其他支出
A76: 支出合计 | B76: =B5+B10+B21+B29+B36+B40+B43+B47+B50+B56+B60+B65+B68+B71 -> 114758 | C76: =C5+C10+C21+C29+C36+C40+C43+C47+C50+C56+C60+C65+C68+C71 -> 112706 | D76: =C76/B76 -> 98%

Sheet 政府预算草案表-7
A1: 附表7
A2: 2023年江阴临港开发区一般公共预算对下级的转移支付预算分项目表
D3: 单位：万元
A4: 项 目 | B4: 上年执行数 | C4: 本年预算数 | D4: 预算数为上年执行数的％
A5: 一、一般性转移支付
A6: 二、专项转移支付
A7: 合 计 | B7: =B5+B6 -> 0 | C7: =C5+C6 -> 0
A8: 备注：本表为空。

Sheet 政府预算草案表-8
A1: 附表8
A2: 2023年江阴临港开发区一般公共预算对下级的转移支付预算分地区表
D3: 单位：万元
A4: 地 区 | B4: 上年执行数 | C4: 本年预算数 | D4: 预算数为上年执行数的％
A20: 合 计 | B20: =SUM(B5:B19) -> 0 | C20: =SUM(C5:C19) -> 0
A22: 备注：本表为空。

Sheet 政府预算草案表-9
A1: 附表9
A2: 2023年江阴临港开发区财政专项资金清单及预算安排情况表
A4: 序号 | B4: 项目名称 | C4: 项目金额 | D4: 实施部门
A6: 合计 | C6: =C7+C14+C24+C27+C32+C37+C42+C45 -> 150143
A7: 一 | B7: 产业强市转型发展类 | C7: =SUM(C8:C13) -> 46465
B8: 工业和信息化专项 | C8: 2620
B9: 科技创新专项资金 | C9: 39600
B10: 其他产业发展扶持资金 | C10: 1145
B11: 人才及创业投资引导资金 | C11: 3100
B12: 商务发展专项资金
B13: 重大产业项目专项资金
A14: 二 | B14: 民生事业社会保障类 | C14: =SUM(C15:C23) -> 58425
B15: 公共交通营运补贴 | C15: 30811
B16: 教育事业专项 | C16: 1603
B17: 其他民生事业社会保障支出 | C17: 3626
B18: 社保补助专项 | C18: 6166
B19: 社会福利专项 | C19: 1473
B20: 社会救助专项 | C20: 1386
B21: 社会优抚专项 | C21: 97
B22: 卫生健康专项 | C22: 12312
B23: 文体事业专项 | C23: 951
A24: 三 | B24: 公共安全专项类 | C24: =SUM(C25:C26) -> 2186
B25: 法治建设专项 | C25: 616
B26: 公共安全专项 | C26: 1570
A27: 四 | B27: 生态环保城市维护类 | C27: =SUM(C28:C31) -> 9749
B28: 城市基础设施运营维护专项资金 | C28: 1395
B29: 规划专项资金
B30: 环境保护和环境治理专项 | C30: 1354
B31: 其他生态环保资金 | C31: 7000
A32: 五 | B32: 政府投资类 | C32: =SUM(C33:C36) -> 24094
B33: PPP项目专项
B34: 政府投资基金
B35: 政府债券利息及化债资金 | C35: 4094
B36: 重大基础设施建设项目资金 | C36: 20000
A37: 六 | B37: 三农城乡一体化 | C37: =SUM(C38:C41) -> 9224
B38: 科技镇长团
B39: 粮食储备和管理专项
B40: 农业农村发展专项 | C40: 9224
B41: 水利及农机化建设专项
A42: 七 | B42: 其他类 | C42: =SUM(C43:C44) -> 0
B43: 对口支援专项
B44: 公共管理专项
A45: 八 | B45: 土地收储开发专项

Sheet 政府预算草案表-10
A1: 附表10
A2: 2023年江阴临港开发区一般公共预算“三公”经费、会议费、 培训费、机关运行经费预算表
C3: 单位：万元
A4: 支 出 项 目 | B4: 上年预算数 | C4: 本年预算数
A5: 一、“三公”经费支出合计 | B5: =B6+B7+B10 -> 689 | C5: =C6+C7+C10 -> 610
A6: 1.因公出国（境）费 | B6: 60 | C6: 60
A7: 2.公务用车购置及运行维护费 | B7: =SUM(B8:B9) -> 403 | C7: =SUM(C8:C9) -> 385
A8: 公务用车购置 | B8: 74 | C8: 64
A9: 公务用车运行维护费 | B9: 329 | C9: 321
A10: 3.公务接待费 | B10: 226 | C10: 165
A11: 二、会议费 | B11: 23 | C11: 14
A12: 三、培训费 | B12: 391 | C12: 394
A13: 四、机关运行经费 | B13: 5664 | C13: 5180

Sheet 政府预算草案表-11
A1: 附表11
A2: 2023年江阴临港开发区政府性基金收入预算表
D3: 单位：万元
A4: 项 目 | B4: 上年执行数 | C4: 本年预算数 | D4: 预算数为上年执行数的％
A5: 一、地方农网还贷资金收入
A6: 二、海南省高等级公路车辆通行附加费收入
A7: 三、港口建设费收入
A8: 四、国家电影事业发展专项资金收入
A9: 五、国有土地收益基金收入
A10: 六、农业土地开发资金收入
A11: 七、国有土地使用权出让收入 | B11: 119612 | C11: 401877 | D11: =C11/B11 -> 336%
A12: 八、大中型水库库区基金收入
A13: 九、彩票公益金收入
A14: 十、城市基础设施配套费收入
A15: 十一、小型水库移民扶助基金收入
A16: 十二、国家重大水利工程建设基金收入
A17: 十三、车辆通行费
A18: 十四、污水处理费收入
A19: 十五、彩票发行机构和彩票销售机构的业务费用
A20: 十六、其他政府性基金收入
A21: 十七、专项债券对应项目专项收入
A22: 本级收入合计 | B22: =SUM(B5:B21) -> 119612 | C22: =SUM(C5:C21) -> 401877 | D22: =C22/B22 -> 336%
A23: 地方政府专项债务收入 | C23: 20000
A24: 转移性收入 | B24: =B25+B28+B29+B30+B31 -> 7400 | C24: =C25+C28+C29+C30+C31 -> 6000 | D24: 81%
A25: 政府性基金转移收入 | B25: =SUM(B26:B27) -> 7400 | C25: =SUM(C26:C27) -> 6000 | D25: 81%
A26: 政府性基金补助收入 | B26: 7400 | C26: 6000 | D26: 81%
A27: 政府性基金上解收入
A28: 调入资金
A29: 地方政府专项债务转贷收入
A30: 上年结转收入
A31: 上年结余收入
A32: 收入总计 | B32: =B22+B23+B24 -> 127012 | C32: =C22+C23+C24 -> 427877 | D32: 337%

Sheet 政府预算草案表-12
A1: 附表12
A2: 2023年江阴临港开发区政府性基金支出预算表
D3: 单位：万元
A4: 项 目 | B4: 上年执行数 | C4: 本年预算数 | D4: 预算数为上年执行数的％
A5: 一、核电站乏燃料处理处置基金支出
A6: 二、国家电影事业发展专项资金安排支出
A7: 三、旅游发展基金支出
A8: 四、国家电影事业发展专项资金对应专项债务收入安排的支出
A9: 五、大中型水库移民后期扶持基金支出
A10: 六、小型水库移民扶助基金安排的支出
A11: 七、小型水库移民扶助基金对应专项债务收入安排的支出
A12: 八、可再生能源电价附加收入安排的支出
A13: 九、废弃电器电子产品处理基金支出
A14: 十、国有土地使用权出让收入安排的支出 | B14: 118754 | C14: 416282 | D14: =C14/B14 -> 351%
A15: 十一、国有土地收益基金安排的支出
A16: 十二、农业土地开发资金安排的支出
A17: 十三、城市基础设施配套费安排的支出 | B17: 4500 | C17: 5000 | D17: =C17/B17 -> 111%
A18: 十四、污水处理费收入安排的支出 | B18: 700 | C18: 800 | D18: 114%
A19: 十五、土地储备专项债券收入安排的支出
A20: 十六、棚户区改造专项债券收入安排的支出
A21: 十七、城市基础设施配套费对应专项债务收入安排的支出
A22: 十八、污水处理费对应专项债务收入安排的支出
A23: 十九、国有土地使用权出让收入对应专项债务收入安排的支出
A24: 二十、大中型水库库区基金安排的支出
A25: 二十一、三峡水库库区基金支出
A26: 二十二、国家重大水利工程建设基金安排的支出
A27: 二十三、大中型水库库区基金对应专项债务收入安排的支出
A28: 二十四、国家重大水利工程建设基金对应专项债务收入安排的支出
A29: 二十五、海南省高等级公路车辆通行附加费安排的支出
A30: 二十六、车辆通行费安排的支出
A31: 二十七、港口建设费安排的支出
A32: 二十八、铁路建设基金支出
A33: 二十九、船舶油污损害赔偿基金支出
A34: 三十、民航发展基金支出
A35: 三十一、海南省高等级公路车辆通行附加费对应专项债务收入安排的支出
A36: 三十二、政府收费公路专项债券收入安排的支出
A37: 三十三、车辆通行费对应专项债务收入安排的支出
A38: 三十四、港口建设费对应专项债务收入安排的支出
A39: 三十五、农网还贷资金支出
A40: 三十六、金融调控支出
A41: 三十七、其他政府性基金及对应专项债务收入安排的支出
A42: 三十八、彩票发行销售机构业务费安排的支出
A43: 三十九、彩票公益金安排的支出 | B43: 200 | C43: 200 | D43: =C43/B43 -> 100%
A44: 四十、地方政府专项债务付息支出 | B44: 2858 | C44: 5595 | D44: 196%
A45: 四十一、地方政府专项债务发行费用支出
A46: 四十二、抗疫特别国债安排的支出
A47: 本级支出合计 | B47: =SUM(B5:B46) -> 127012 | C47: =SUM(C5:C46) -> 427877 | D47: 337%
A48: 地方政府专项债务还本支出
A49: 转移性支出 | B49: =B50+B53+B54+B55+B56 -> 0 | C49: =C50+C53+C54+C55+C56 -> 0
A50: 政府性基金转移支付
A51: 政府性基金补助支出
A52: 政府性基金上解支出
A53: 调出资金
A54: 地方政府专项债务转贷支出
A55: 年终结转
A56: 年终结余
A57: 支出总计 | B57: =B47+B48+B49 -> 127012 | C57: =C47+C48+C49 -> 427877 | D57: =C57/B57 -> 337%

Sheet 政府预算草案表-13
A1: 附表13
A2: 2023年江阴临港开发区政府性基金预算支出表 （按经济科目分类）
A3: 单位：万元
A4: 支出科目 | B4: 上年执行数 | C4: 本年预算数
A5: 市本级级支出合计 | B5: =B6+B11+B22+B30+B37+B41+B44+B48+B51+B57+B61+B66+B69+B72 -> 127012 | C5: =C6+C11+C22+C30+C37+C41+C44+C48+C51+C57+C61+C66+C69+C72 -> 427877
A6: 一、机关工资福利支出 | B6: =SUM(B7:B10) -> 0 | C6: =SUM(C7:C10) -> 0
A7: 工资奖金津补贴
A8: 社会保障缴费
A9: 住房公积金
A10: 其他工资福利支出
A11: 二、机关商品和服务支出 | B11: =SUM(B12:B21) -> 0 | C11: =SUM(C12:C21) -> 0
A12: 办公经费
A13: 会议费
A14: 培训费
A15: 专用材料购置费
A16: 委托业务费
A17: 公务接待费
A18: 因公出国(境)费用
A19: 公务用车运行维护费
A20: 维修(护)费
A21: 其他商品和服务支出
A22: 三、机关资本性支出(一) | B22: =SUM(B23:B29) -> 0 | C22: =SUM(C23:C29) -> 0
A23: 房屋建筑物购建
A24: 基础设施建设
A25: 公务用车购置
A26: 土地征迁补偿和安置支出
A27: 设备购置
A28: 大型修缮
A29: 其他资本性支出
A30: 四、机关资本性支出(二) | B30: =SUM(B31:B36) -> 123954 | C30: =SUM(C31:C36) -> 422082
A31: 房屋建筑物购建
A32: 基础设施建设
A33: 公务用车购置
A34: 设备购置
A35: 大型修缮
A36: 其他资本性支出 | B36: 123954 | C36: 422082
A37: 五、对事业单位经常性补助 | B37: =SUM(B38:B40) -> 200 | C37: =SUM(C38:C40) -> 200
A38: 工资福利支出
A39: 商品和服务支出
A40: 其他对事业单位补助 | B40: 200 | C40: 200
A41: 六、对事业单位资本性补助 | B41: =SUM(B42:B43) -> 0 | C41: =SUM(C42:C43) -> 0
A42: 资本性支出(一)
A43: 资本性支出(二)
A44: 七、对企业补助 | B44: =SUM(B45:B47) -> 0 | C44: =SUM(C45:C47) -> 0
A45: 费用补贴
A46: 利息补贴
A47: 其他对企业补助
A48: 八、对企业资本性支出 | B48: =SUM(B49:B50) -> 0 | C48: =SUM(C49:C50) -> 0
A49: 对企业资本性支出(一)
A50: 对企业资本性支出(二)
A51: 九、对个人和家庭的补助 | B51: =SUM(B52:B56) -> 0 | C51: =SUM(C52:C56) -> 0
A52: 社会福利和救助
A53: 助学金
A54: 个人农业生产补贴
A55: 离退休费
A56: 其他对个人和家庭补助
A57: 十、对社会保障基金补助 | B57: =SUM(B58:B60) -> 0 | C57: =SUM(C58:C60) -> 0
A58: 对社会保险基金补助
A59: 补充全国社会保障基金
A60: 对机关事业单位职业年金的补助
A61: 十一、债务利息及费用支出 | B61: =SUM(B62:B65) -> 2858 | C61: =SUM(C62:C65) -> 5595
A62: 国内债务付息 | B62: 2858 | C62: 5595
A63: 国外债务付息
A64: 国内债务发行费用
A65: 国外债务发行费用
A66: 十二、债务还本支出 | B66: =SUM(B67:B68) -> 0 | C66: =SUM(C67:C68) -> 0
A67: 国内债务还本
A68: 国外债务还本
A69: 十三、预备费及预留 | B69: =SUM(B70:B71) -> 0 | C69: =SUM(C70:C71) -> 0
A70: 预备费
A71: 预留
A72: 十四、其他支出 | B72: =SUM(B73:B76) -> 0 | C72: =SUM(C73:C76) -> 0
A73: 赠与
A74: 国家赔偿费用支出
A75: 对民间非营利组织和群众性自治组织补贴
A76: 其他支出

Sheet 政府预算草案表-14
A1: 附表14
A2: 2023年江阴临港开发区政府性预算本级支出预算表
D3: 单位：万元
A4: 项 目 | B4: 上年执行数 | C4: 本年预算数 | D4: 预算数为上年执行数的％
A5: 一、核电站乏燃料处理处置基金支出
A6: 二、国家电影事业发展专项资金安排支出
A7: 三、旅游发展基金支出
A8: 四、国家电影事业发展专项资金对应专项债务收入安排的支出
A9: 五、大中型水库移民后期扶持基金支出
A10: 六、小型水库移民扶助基金安排的支出
A11: 七、小型水库移民扶助基金对应专项债务收入安排的支出
A12: 八、可再生能源电价附加收入安排的支出
A13: 九、废弃电器电子产品处理基金支出
A14: 十、国有土地使用权出让收入安排的支出 | B14: =B21 -> 118754 | C14: =C21 -> 416282 | D14: =C14/B14 -> 351%
A15: 征地和拆迁补偿支出
A16: 土地开发支出
A17: 城市建设支出
A18: 农村基础设施建设支出
A19: 土地出让业务支出
A20: 农业农村生态环境支出
A21: 其他国有土地使用权出让收入安排的支出 | B21: 118754 | C21: 416282 | D21: =C21/B21 -> 351%
A22: 十一、国有土地收益基金安排的支出
A23: 土地开发支出
A24: 十二、农业土地开发资金安排的支出
A25: 十三、城市基础设施配套费安排的支出 | B25: 4500 | C25: 5000 | D25: =C25/B25 -> 111%
A26: 其他城市基础设施配套费安排的支出 | B26: =B25 -> 4500 | C26: =C25 -> 5000 | D26: 111%
A27: 十四、污水处理费收入安排的支出 | B27: =B29 -> 700 | C27: =C29 -> 800 | D27: 114%
A28: 代征手续费
A29: 其他污水处理费安排的支出 | B29: 700 | C29: 800 | D29: 114%
A30: 十五、土地储备专项债券收入安排的支出
A31: 十六、棚户区改造专项债券收入安排的支出
A32: 其他棚户区改造专项债券收入安排的支出
A33: 十七、城市基础设施配套费对应专项债务收入安排的支出
A34: 十八、污水处理费对应专项债务收入安排的支出
A35: 十九、国有土地使用权出让收入对应专项债务收入安排的支出
A36: 城市建设支出
A37: 二十、大中型水库库区基金安排的支出
A38: 二十一、三峡水库库区基金支出
A39: 二十二、国家重大水利工程建设基金安排的支出
A40: 二十三、大中型水库库区基金对应专项债务收入安排的支出
A41: 二十四、国家重大水利工程建设基金对应专项债务收入安排的支出
A42: 二十五、海南省高等级公路车辆通行附加费安排的支出
A43: 二十六、车辆通行费安排的支出
A44: 二十七、港口建设费安排的支出
A45: 其他港口建设费安排的支出
A46: 二十八、铁路建设基金支出
A47: 二十九、船舶油污损害赔偿基金支出
A48: 三十、民航发展基金支出
A49: 三十一、海南省高等级公路车辆通行附加费对应专项债务收入安排的支出
A50: 三十二、政府收费公路专项债券收入安排的支出
A51: 三十三、车辆通行费对应专项债务收入安排的支出
A52: 三十四、港口建设费对应专项债务收入安排的支出
A53: 三十五、农网还贷资金支出
A54: 三十六、金融调控支出
A55: 三十七、其他政府性基金及对应专项债务收入安排的支出
A56: 其他政府性基金债务收入安排的支出
A57: 三十八、彩票发行销售机构业务费安排的支出
A58: 福利彩票销售机构的业务费支出
A59: 体育彩票销售机构的业务费支出
A60: 三十九、彩票公益金安排的支出 | B60: =SUM(B61:B62) -> 200 | C60: =SUM(C61:C62) -> 200 | D60: =C60/B60 -> 100%
A61: 用于社会福利的彩票公益金支出 | B61: 150 | C61: 150 | D61: 100%
A62: 用于体育事业的彩票公益金支出 | B62: 50 | C62: 50 | D62: 100%
A63: 用于残疾人事业的彩票公益金支出
A64: 四十、地方政府专项债务付息支出 | B64: =B65 -> 2858 | C64: =C65 -> 5595 | D64: 196%
A65: 国有土地使用权出让金债务付息支出 | B65: 2858 | C65: 5595 | D65: 196%
A66: 土地储备专项债券付息支出
A67: 棚户区改造专项债券付息支出
A68: 其他政府性基金债务付息支出
A69: 四十一、地方政府专项债务发行费用支出
A70: 国有土地使用权出让金债务发行费用支出
A71: 支出合计 | B71: =B5+B6+B7+B8+B9+B10+B11+B12+B13+B14+B22+B24+B25+B27+B30+B31+B33+B34+B35+B37+B38+B39+B40+B41+B42+B43+B44+B46+B47+B48+B49+B50+B51+B52+B53+B54+B55+B57+B60+B64+B69 -> 127012 | C71: =C5+C6+C7+C8+C9+C10+C11+C12+C13+C14+C22+C24+C25+C27+C30+C31+C33+C34+C35+C37+C38+C39+C40+C41+C42+C43+C44+C46+C47+C48+C49+C50+C51+C52+C53+C54+C55+C57+C60+C64+C69 -> 427877 | D71: =C71/B71 -> 337%

Sheet 政府预算草案表-15
A1: 附表15
A2: 2023年江阴临港开发区政府性基金预算对下级的转移支付预算分项目表
D3: 单位：万元
A4: 项 目 | B4: 上年年执行数 | C4: 本年预算数 | D4: 预算数为上年执行数的％
A5: 一、核电站乏燃料处理处置基金支出
A6: 二、国家电影事业发展专项资金安排支出
A7: 三、旅游发展基金支出
A8: 四、国家电影事业发展专项资金对应专项债务收入安排的支出
A9: 五、大中型水库移民后期扶持基金支出
A10: 六、小型水库移民扶助基金安排的支出
A11: 七、小型水库移民扶助基金对应专项债务收入安排的支出
A12: 八、可再生能源电价附加收入安排的支出
A13: 九、废弃电器电子产品处理基金支出
A14: 十、国有土地使用权出让收入安排的支出 | D14: =C14/B14 -> 
A15: 十一、国有土地收益基金安排的支出
A16: 十二、农业土地开发资金安排的支出
A17: 十三、城市基础设施配套费安排的支出 | D17: =C17/B17 -> 
A18: 十四、污水处理费收入安排的支出 | D18: =C18/B18 -> 
A19: 十五、土地储备专项债券收入安排的支出
A20: 十六、棚户区改造专项债券收入安排的支出
A21: 十七、城市基础设施配套费对应专项债务收入安排的支出
A22: 十八、污水处理费对应专项债务收入安排的支出
A23: 十九、国有土地使用权出让收入对应专项债务收入安排的支出
A24: 二十、大中型水库库区基金安排的支出
A25: 二十一、三峡水库库区基金支出
A26: 二十二、国家重大水利工程建设基金安排的支出
A27: 二十三、大中型水库库区基金对应专项债务收入安排的支出
A28: 二十四、国家重大水利工程建设基金对应专项债务收入安排的支出
A29: 二十五、海南省高等级公路车辆通行附加费安排的支出
A30: 二十六、车辆通行费安排的支出
A31: 二十七、港口建设费安排的支出
A32: 二十八、铁路建设基金支出
A33: 二十九、船舶油污损害赔偿基金支出
A34: 三十、民航发展基金支出
A35: 三十一、海南省高等级公路车辆通行附加费对应专项债务收入安排的支出
A36: 三十二、政府收费公路专项债券收入安排的支出
A37: 三十三、车辆通行费对应专项债务收入安排的支出
A38: 三十四、港口建设费对应专项债务收入安排的支出
A39: 三十五、农网还贷资金支出
A40: 三十六、金融调控支出
A41: 三十七、其他政府性基金及对应专项债务收入安排的支出
A42: 三十八、彩票发行销售机构业务费安排的支出
A43: 三十九、彩票公益金安排的支出 | D43: =C43/B43 -> 
A44: 四十、地方政府专项债务付息支出
A45: 四十一、地方政府专项债务发行费用支出
A46: 四十二、抗疫特别国债安排的支出
A47: 支出总计 | D47: =C47/B47 -> 
A48: 备注：本表为空。

Sheet 政府预算草案表-16
A1: 附表16
A2: 2023年江阴临港开发区政府性基金预算对下级的转移支付预算分地区表
D3: 单位：万元
A4: 地 区 | B4: 上年执行数 | C4: 本年预算数 | D4: 预算数为上年执行数的％
A20: 合 计 | B20: =SUM(B5:B19) -> 0 | C20: =SUM(C5:C19) -> 0
A22: 备注：本表为空。

Sheet 政府预算草案表-17
A1: 附表17
A2: 2023年江阴临港开发区国有资本经营收入预算表
D3: 单位:万元
A4: 项 目 | B4: 上年执行数 | C4: 本年预算数 | D4: 预算数为上年执行数的％
A5: 一、利润收入
A6: 二、股利、股息收入
A7: 三、产权转让收入
A8: 四、清算收入
A9: 五、其他国有资本经营预算收入
A10: 本级收入合计 | B10: =SUM(B5:B9) -> 0 | C10: =SUM(C5:C9) -> 0
A11: 转移性收入 | B11: =SUM(B12:B15) -> 0 | C11: =SUM(C12:C15) -> 0
A12: 国有资本经营预算转移支付收入
A13: 国有资本经营预算上解收入
A14: 上年结转收入
A15: 上年结余收入
A16: 收入总计 | B16: =B10+B11 -> 0 | C16: =C10+C11 -> 0
A18: 备注：本表为空。

Sheet 政府预算草案表-18
A1: 附表18
A2: 2023年江阴临港开发区国有资本经营支出预算表
D3: 单位：万元
A4: 项 目 | B4: 上年执行数 | C4: 本年预算数 | D4: 预算数为上年执行数的％
A5: 一、补充全国社会保障基金
A6: 国有资本经营预算补充社保基金支出
A7: 二、解决历史遗留问题及改革成本支出
A8: 厂办大集体改革支出
A9: “三供一业”移交补助支出
A10: 国有企业退休人员社会化管理补助支出
A11: 三、国有企业资本金注入
A12: 国有经济结构调整支出
A13: 其他国有企业资本金注入
A14: 四、国有企业政策性补贴
A15: 国有企业政策性补贴
A16: 五、金融国有资本经营预算支出
A17: 资本支出
A18: 六、其他国有资本经营预算支出
A19: 其他国有资本经营预算支出
A20: 本级支出合计 | B20: =B11+B18+B7 -> 0 | C20: =C11+C18+C7 -> 0
A21: 转移性支出 | B21: =SUM(B22:B26) -> 0 | C21: =SUM(C22:C26) -> 0
A22: 国有资本经营预算转移支付支出
A23: 国有资本经营预算上解支出
A24: 国有资本经营预算调出资金
A25: 年终结转
A26: 年终结余
A27: 支出总计 | B27: =B20+B21 -> 0 | C27: =C20+C21 -> 0
A28: 备注：本表为空。

Sheet 政府预算草案表-19
A1: 附表19
A2: 2023年江阴临港开发区国有资本经营预算转移支付预算表
A3: 单位:万元
A4: 科目/项目 | B4: 合计 | C4: **地区 | D4: ** | E4: ** | F4: ** | G4: ** | H4: ** | I4: ** | J4: ** | K4: ** | L4: ** | M4: ** | N4: ** | O4: ……
A20: 注：根据《财政部办公厅关于印发财政预决算领域基层政务公开标准指引的通知》（财办发〔2019〕77号）相关规定，需公开国有资本经营预算对下转移支付情况（无数据也需公开空表）。无国有资本经营预算对下转移支付，所以本表为空。

Sheet 政府预算草案表-20
A1: 附表20
A2: 2023年江阴临港开发区国有资本经营预算支出表 （按经济科目分类）
A3: 单位：万元
A4: 支出科目 | B4: 上年执行数 | C4: 本年预算数
A5: 江阴市本级支出总计 | B5: 0 | C5: 0
A6: 一、对企业补助
A7: 费用补贴
A8: 利息补贴
A9: 其他对企业补助
A10: 二、对企业资本性支出
A11: 对企业资本性支出（一）
A12: 对企业资本性支出（二）
A14: 备注：本表为空。

Sheet 政府预算草案表-21
A1: 附表21
A2: 2023年江阴临港开发区社会保险基金预算收入表
D3: 单位：万元
A4: 收 入 项 目 | B4: 上年执行数 | D4: 本年预算数
A6: 1.城乡居民基本养老保险基金收入
A7: 2.机关事业单位基本养老保险基金收入
A8: 3.工伤保险基金收入
A9: 4.失业保险基金收入
A10: 市本级级收入合计 | B10: =SUM(B6:B9) -> 0 | D10: =SUM(D6:D9) -> 0
A11: 5.上年结余收入
A12: 其中：社会保险基金上解下拨收入
A13: （1）社会保险基金上级补助收入
A14: （2）社会保险基金下级上解收入
A15: 社会保险基金转移收入
A16: 其中：机关事业单位基本养老保险转移收入
A17: 市本级收入总计 | B17: =B10+B11 -> 0 | D17: =D10+D11 -> 0
A19: 2023年江阴市社会保险基金收入计划表
D20: 单位：万元
A21: 收 入 项 目 | B21: 上年执行数 | D21: 本年计划数
A23: 1.企业职工基本养老保险基金收入
A24: 2.职工基本医疗保险基金收入(含生育保险）
A25: 3.城乡居民基本医疗保险基金收入
A26: 收入合计 | B26: =SUM(B22:B25) -> 0 | D26: =SUM(D22:D25) -> 0
A28: 备注：本表为空。

Sheet 政府预算草案表-22
A1: 附表22
A2: 2023年江阴临港开发区社会保险基金预算支出表
C3: 金额单位：万元
A4: 支 出 项 目 | B4: 上年执行数 | C4: 本年预算数
A6: 1.城乡居民基本养老保险基金支出
A7: （1）基础养老金支出
A8: （2）个人账户养老金支出
A9: （3）丧葬抚恤补助支出
A10: （4）其他城乡居民基本养老保险基金支出
A11: 2.机关事业单位基本养老保险基金支出
A12: （1）基本养老金支出
A13: （2）其他机关事业单位基本养老保险基金支出
A14: 3.工伤保险基金支出
A15: （1）工伤保险待遇
A16: （2）劳动能力鉴定支出
A17: （3）工伤预防费用支出
A18: （4）其他工伤保险基金支出
A19: 4.失业保险基金支出
A20: （1）失业保险金
A21: （2）医疗保险费
A22: （3）丧葬抚恤补助
A23: （4）职业培训和职业介绍补贴
A24: （5）技能提升补贴支出
A25: （6）稳定岗位补贴支出
A26: （7）其他费用支出
A27: （8）其他失业保险基金支出
A28: 市本级支出合计 | B28: =B6+B11+B14+B19 -> 0 | C28: =C6+C11+C14+C19 -> 0
A29: 5.年终结余
A30: 其中：社会保险基金上解下拨支出
A31: (1)社会保险基金补助下级支出
A32: (2)社会保险基金上解上级支出
A33: 社会保险基金转移支出
A34: 其中：机关事业单位基本养老保险转移支出
A35: 市本级支出总计 | B35: =B28+B29 -> 0 | C35: =C28+C29 -> 0
A37: 2023年江阴市社会保险基金支出计划表
C38: 单位：万元
A39: 支 出 项 目 | B39: 上年执行数 | C39: 本年计划数
A41: 1.企业职工基本养老保险基金支出
A42: 2.职工基本医疗保险基金支出(含生育保险）
A43: 3.城乡居民基本医疗保险基金支出
A44: 支出合计 | B44: =SUM(B40:B43) -> 0 | C44: =SUM(C40:C43) -> 0
A46: 备注：本表为空。

Sheet 政府预算草案表-23
A1: 附表23
A2: 2022年江阴市地方政府债务限额及余额情况表
F3: 单位：万元
A4: 地 区 | B4: 2022年债务限额 | E4: 2022年债务余额预计执行数 | H4: 2018年债务超限额情况
C5: 一般债务 | D5: 专项债务 | F5: 一般债务 | G5: 专项债务 | I5: 一般债务 | J5: 专项债务
A6: 公 式 | B6: A=B+C | C6: B | D6: C | E6: D=E+F | F6: E | G6: F | H6: G=H+I | I6: H | J6: I
A7: 江阴市 | B7: =C7+D7 -> 0 | E7: =F7+G7 -> 0 | H7: =B7-E7 -> 0.00 | I7: 0.00 | J7: 0.00
H8: 0.00 | I8: 0.00 | J8: 0.00
H10: =B10-E10 -> 0.00 | I10: 0.00 | J10: 0.00
H11: 0.00 | I11: 0.00 | J11: 0.00
H12: 0.00 | I12: 0.00 | J12: 0.00
H13: 0.00 | I13: 0.00 | J13: 0.00
A14: 注：本表反映上一年度本地区、本级及所属地区地方政府债务限额及余额预计执行数。本表为空。 | H14: 0.00 | I14: 0.00 | J14: 0.00

Sheet 政府预算草案表-24
A1: 附表24
A2: 2023年江阴临港开发区政府一般债务余额情况表
C3: 单位：万元
A4: 项 目 | B4: 预算数 | C4: 执行数
A5: 一、2021年末地方政府一般债务余额实际数
A6: 二、2022年末地方政府一般债务余额限额
A7: 三、2022年地方政府一般债务发行额
A8: 中央转贷地方的国际金融组织和外国政府贷款
A9: 2022年地方政府一般债券发行额
A10: 四、2022年地方政府一般债务还本额
A11: 五、2022年末地方政府一般债务余额预计执行数
A12: 六、2023年地方财政赤字
A13: 七、2023年末地方政府一般债务余额限额
A15: 备注：本表为空。

Sheet 政府预算草案表25
A1: 附表25
A2: 2023年江阴临港开发区地方政府专项债务余额情况表
C3: 单位：万元
A4: 项 目 | B4: 预算数 | C4: 执行数
A5: 一、2021年末地方政府专项债务余额实际数
A6: 二、2022年末地方政府专项债务余额限额
A7: 三、2022年地方政府专项债务发行额
A8: 四、2022年地方政府专项债务还本额
A9: 五、2022年末地方政府专项债务余额预计执行数
A10: 六、2023年地方政府专项债务新增限额
A11: 七、2023年末地方政府专项债务余额限额
A13: 备注：本表为空。

Sheet 政府预算草案表-26
A1: 附表26
A2: 2023年江阴临港开发区地方政府债券发行及还本付息情况表
D3: 单位：万元
A4: 项目 | B4: 公式 | C4: 本地区 | D4: 本级
A5: 一、2022年发行预计执行数 | B5: A=B+D
A6: （一）一般债券 | B6: B
A7: 其中：再融资债券 | B7: C
A8: （二）专项债券 | B8: D
A9: 其中：再融资债券 | B9: E
A10: 二、2022年还本支出预计执行数 | B10: F=G+H
A11: （一）一般债券 | B11: G
A12: （二）专项债券 | B12: H
A13: 三、2022年付息支出预计执行数 | B13: I=J+K
A14: （一）一般债券 | B14: J
A15: （二）专项债券 | B15: K
A16: 四、2023年还本支出预算数 | B16: L=M+O
A17: （一）一般债券 | B17: M
A18: 其中：再融资债券
A19: 财政预算安排 | B19: N
A20: （二）专项债券 | B20: O
A21: 其中：再融资债券
A22: 财政预算安排 | B22: P
A23: 五、2023年付息支出预算数 | B23: Q=R+S
A24: （一）一般债券 | B24: R
A25: （二）专项债券 | B25: S
A26: 注：本表为空。

Sheet 政府预算草案表-27
A1: 附表27
A2: 2023年江阴临港开发区地方政府债务限额提前下达情况表
E3: 单位：万元
A4: 项目 | B4: 公式 | C4: 本地区 | D4: 本级 | E4: 下级
A5: 一、2022年地方政府债务限额 | B5: A=B+C
A6: 其中：一般债券限额 | B6: B
A7: 专项债务限额 | B7: C
A8: 二、提前下达的2023年新增地方政府债务限额 | B8: D=E+F
A9: 其中：一般债券限额 | B9: E
A10: 专项债务限额 | B10: F
A11: 注：本表反映本地区及本级预算中列示提前下达的新增地方政府债务限额情况。本表为空。

Sheet 政府预算草案表-28
A1: 附表28
A2: 2023年江阴临港开发区地方年初新增地方政府债券资金安排表
F3: 单位：万元
A4: 序号 | B4: 项目名称 | C4: 项目类型 | D4: 项目主管部门 | E4: 债券性质 | F4: 债券规模
A5: 1
A6: 注：本表反映本级当年提前下达的新增地方政府债券资金使用安排。本表为空。
